Cogmind - Beta 16.1 @@@ ROGUE MODE // 2026.05.03 @ 22:02:11 Player: jumpy Result: Self-destructed Performance ------------- Evolutions (1) 500 Regions Visited (4) 800 Robots Destroyed (28) 140 Value Destroyed (539) 539 Prototype IDs (4) 80 Alien Tech Used (0) 0 Bonus (399) 399 TOTAL SCORE: 2458 Bonus ------- Follower Combat Kills 199 Entered Garrisons 200 Cogmind --------- Core Integrity 128/400 Matter 253/300 Energy 280/280 System Corruption 0% Temperature Cool (6) Movement Walking (175) Ox1 Location -9/Garrison Parts ------- > --- POWER (1) -------- Cooled Ion Engine > --- PROPULSION (3) --- Aluminum Leg Aluminum Leg > --- UTILITY (3) ------ Medium Storage Unit Seismic Detector > --- WEAPON (2) ------- Improved Medium Laser Improved Medium Laser > --- INVENTORY (10) --- Cooled Ion Engine Wheel Improved Terrain Scanner Plasma Cutter Peak State ------------ > --- POWER ------------ Cooled Ion Engine > --- PROPULSION ------- Aluminum Leg Aluminum Leg Aluminum Leg > --- UTILITY ---------- Medium Storage Unit Seismic Detector Light Armor Plating > --- WEAPON ----------- Improved Medium Laser Improved Medium Laser > --- INVENTORY -------- Ion Engine Aluminum Leg Aluminum Leg Aluminum Leg Wheel Improved Terrain Scanner Seismic Detector Light Armor Plating Improved Medium Laser Plasma Cutter [Rating: 16] Favorites ----------- Power Ion Engine Engine Ion Engine Propulsion Aluminum Leg Leg Aluminum Leg Utility Seismic Detector Device Seismic Detector Storage Medium Storage Unit Protection Light Armor Plating Weapon Improved Medium Laser Energy Gun Improved Medium Laser Ballistic Gun Assault Rifle Build | -11 -10 -9 -9 -9 ------- Run | Yrd Mat Mat Sto Gar Slots Evolved 2 | . . 2 . . Power . | . . . . . Propulsion 1 | . . 1 . . Utility 1 | . . 1 . . Weapon . | . . . . . Parts Attached 21 | 7 1 3 8 2 Power 3 | 1 . 1 1 . Engine 3 | 1 . 1 1 . Core . | . . . . . Reactor . | . . . . . Propulsion 6 | 2 . 1 2 1 Treads . | . . . . . Leg 6 | 2 . 1 2 1 Wheel . | . . . . . Hover . | . . . . . Flight . | . . . . . Utility 6 | 2 1 1 2 . Device 2 | 1 . . 1 . Storage 2 | 1 1 . . . Processor . | . . . . . Hackware . | . . . . . Protection 2 | . . 1 1 . Artifact . | . . . . . Weapon 6 | 2 . . 3 1 Energy Gun 3 | . . . 2 1 Energy Cannon . | . . . . . Ballistic Gun 3 | 2 . . 1 . Ballistic Cannon . | . . . . . Launcher . | . . . . . Special Weapon . | . . . . . Impact Weapon . | . . . . . Slashing Weapon . | . . . . . Piercing Weapon . | . . . . . Special Melee Weapon . | . . . . . Unidentified Prototypes 2 | . . . 2 . Parts Lost 7 | . . . 5 2 Power . | . . . . . Propulsion 4 | . . . 2 2 Utility 3 | . . . 3 . Weapon . | . . . . . Highest Loss Streak 5 | . . . 5 2 To Critical Strikes . | . . . . . Average Backups 7 | 4 7 9 9 4 Power . | . 1 1 1 1 Propulsion 2 | 1 2 3 3 1 Utility 1 | . 2 2 2 1 Weapon 1 | 1 2 2 1 . Tool/Special . | . . . . . Unused Backups 9 | . . 1 4 4 Power 2 | . . . 1 1 Propulsion 2 | . . 1 . 1 Utility 1 | . . . . 1 Weapon 3 | . . . 3 . Tool/Special 1 | . . . . 1 Average Slot Usage (%) 93 | . 100 88 95 87 Engine 11 | . 14 11 10 11 Leg 31 | . 28 30 32 32 Device 11 | . 14 11 10 11 Storage 11 | . 14 11 11 11 Protection 4 | . . 3 9 . Energy Gun 9 | . . . 12 22 Ballistic Gun 12 | . 28 22 9 . Peak Build Rating 16 | 8 8 11 16 15 Average Rating 10 | 6 7 9 13 14 On Entrance 7 | . 7 7 11 12 Avg Prop Armor Cover (%) . | . . . . . Naked Turns . | . . . . . Heaviest Build 28 | 14 19 24 28 25 Greatest Support 30 | 20 20 30 30 30 Greatest Overweight (x) 1 | . . . 1 1 Average Overweight (x) . | . . . . . Largest Inventory Capacity 10 | 8 10 10 10 10 Average Capacity 9 | 7 8 10 10 10 Most Carried 10 | 8 8 10 10 5 Average Carried 7 | 4 7 9 9 4 Final Capacity 10 | 8 10 10 10 10 Final Carried 10 | 7 7 10 6 4 Class Distribution -------------------- 91% | Mutant 8% | Scavenger-Mutant Dominant Class ---------------- Mutant | -10/Materials Mutant | -9/Materials Mutant | -9/Storage Mutant | -9/Garrison Resources | -11 -10 -9 -9 -9 ----------- Run | Yrd Mat Mat Sto Gar Matter Collected 605 | 362 12 100 118 13 Remotely . | . . . . . Salvage Created 947 | 286 20 110 504 27 Parts 74 | 26 1 5 38 4 Haulers Intercepted 1 | . . . 1 . Recyclers Shooed . | . . . . . Parts Field Recycled . | . . . . . Retrieved Matter . | . . . . . Parts Self-Destructed . | . . . . . Prevented . | . . . . . Parts Restored . | . . . . . Kills | -11 -10 -9 -9 -9 ------- Run | Yrd Mat Mat Sto Gar Combat Hostiles Destroyed 14 | . . 2 10 2 Guns 14 | . . 2 10 2 Classes Destroyed 9 | 3 1 1 4 . Worker 2 | 1 . . 1 . Tunneler 8 | 8 . . . . Hauler 1 | . . . 1 . Recycler 1 | 1 . . . . Mechanic 1 | . . . 1 . Operator 1 | . 1 . . . Swarmer 5 | . . . 3 2 Grunt 1 | . . . 1 . Sentry 8 | . . 2 6 . Best Kill Streak 6 | 6 1 2 6 2 Combat Bots Only 4 | . . 2 4 2 Max Kills in Single Turn 2 | 1 1 1 2 1 Gunslinging . | . . . . . Exploded . | . . . . . Melee . | . . . . . Uniques/NPCs Destroyed . | . . . . . Combat | -11 -10 -9 -9 -9 -------- Run | Yrd Mat Mat Sto Gar Hostile Shots Fired 123 | . . 14 87 22 Missed 34 | . . 3 25 6 Hits 89 | . . 11 62 16 Projectile 89 | . . 11 62 16 Critical Strikes 2 | . . 1 1 . Damage Taken 1131 | . . 165 789 177 Core 272 | . . 103 125 44 Absorbed by Shields 3 | . . . 3 . Core Remaining (%) 100 | 100 100 . . . Volleys Fired 72 | 23 3 10 34 2 Largest 2 | 2 2 2 2 2 Hottest 112 | 40 40 40 112 112 Shots Fired 141 | 46 6 20 65 4 Gun 141 | 46 6 20 65 4 Cannon . | . . . . . Launcher . | . . . . . Special . | . . . . . Kinetic 98 | 46 6 20 26 . Thermal 43 | . . . 39 4 Explosive . | . . . . . Electromagnetic . | . . . . . Robot Hit Streak 27 | 9 2 7 27 6 Robot Miss Streak 4 | 3 1 1 4 . Penetration Max . | . . . . . Secondary Targets 3 | . . . 3 . Max Gunslinging Chain 1 | . . . 1 . Shots Hit Robots 92 | 29 3 14 43 3 Core Hits 43 | 13 2 5 21 2 Critical Kills 1 | 1 . . . . Critical Parts Destroyed . | . . . . . Critical Strikes 3 | 1 . . 2 . Burn 2 | . . . 2 . Destroy 1 | 1 . . . . Melee Attacks . | . . . . . Impact . | . . . . . Slashing . | . . . . . Piercing . | . . . . . Sneak Attacks . | . . . . . Combat Hostiles . | . . . . . Follow-up Attacks . | . . . . . Damage Inflicted 1251 | 321 30 152 696 52 Guns 1248 | 321 30 152 693 52 Cannons . | . . . . . Explosions . | . . . . . Melee . | . . . . . Ramming 3 | . . . 3 . Kinetic 784 | 321 30 152 281 . Thermal 464 | . . . 412 52 Explosive . | . . . . . Electromagnetic . | . . . . . Impact . | . . . . . Slashing . | . . . . . Piercing . | . . . . . Highest Corruption . | . . . . . Average Corruption . | . . . . . Corruption Purged . | . . . . . Corruption Blocked . | . . . . . Overload Shots . | . . . . . Overflow Damage . | . . . . . Projectiles . | . . . . . Explosions . | . . . . . Melee . | . . . . . Knockbacks . | . . . . . Impact . | . . . . . Kinetic . | . . . . . Secondary . | . . . . . Self-Inflicted Damage . | . . . . . Shots . | . . . . . Rammed . | . . . . . Targets Rammed 1 | . . . 1 . Kicked 1 | . . . 1 . Crushed . | . . . . . Highest Temperature 327 | . . 24 327 72 Average Temperature 108 | . . 9 120 37 Received Heat Transfer 340 | . . 72 184 84 Effects 2 | . . . 2 . Interference 2 | . . . 2 . Siege Activations . | . . . . . Martial Activations . | . . . . . Shielding Activations . | . . . . . Robots Disrupted . | . . . . . Combat Hostiles . | . . . . . Robots Corrupted . | . . . . . Combat Hostiles . | . . . . . Parts Fried . | . . . . . Impact Corruptions . | . . . . . Robots Melted . | . . . . . Combat Hostiles . | . . . . . Parts Melted 2 | . . . 2 . Heat Transferred 1147 | . . . 1036 111 Parts Sabotaged . | . . . . . Parts Stolen . | . . . . . Parts Stripped . | . . . . . Power Chain Reactions . | . . . . . Alert | -11 -10 -9 -9 -9 ------- Run | Yrd Mat Mat Sto Gar Maximum Alert Level 1 | . . . 1 1 Low Security (%) 75 | 100 100 100 76 . Level 1 24 | . . . 23 100 Level 2 . | . . . . . Level 3 . | . . . . . Level 4 . | . . . . . Level 5 . | . . . . . High Security . | . . . . . Max Security . | . . . . . Peak Influence 345 | 15 6 50 345 308 Initial 222 | . 6 . 3 222 Average 83 | 2 1 15 98 278 Influence Increases 806 | 50 5 60 590 101 Destroy 0b10 Robot/C 460 | . . 40 380 40 Destroy 0b10 Robot/NC 80 | 50 5 . 25 . Destroy Leader 136 | . . 20 116 . Allied During Kill 53 | . . . 53 . Successful Hack 16 | . . . . 16 Destroy Structure 1 | . . . 1 . Lose Combat Pursuer 60 | . . . 15 45 Influence Decreases 503 | 40 15 50 258 140 Entered New Map 131 | . 4 . 7 120 Time Decay 262 | 40 11 50 161 . Lost Part 70 | . . . 50 20 Lost Ally 40 | . . . 40 . Squads Dispatched 5 | . . . 5 . Investigation . | . . . . . Extermination . | . . . . . Reinforcement 1 | . . . 1 . Assault 2 | . . . 2 . Garrison 2 | . . . 2 . Intercept . | . . . . . Searches Triggered . | . . . . . Construction Impeded . | . . . . . Haulers Reinforced . | . . . . . Active Scanning Responses . | . . . . . Cargo Convoy Interrupts . | . . . . . Stealth | -11 -10 -9 -9 -9 --------- Run | Yrd Mat Mat Sto Gar Distress Signals 1 | . . . 1 . Communications Jammed . | . . . . . Distress Signals . | . . . . . Times Spotted 42 | . 2 3 28 9 Peak Tracking Total 6 | . 1 2 6 6 Tactical Retreats 4 | . . . 1 3 Traps | -11 -10 -9 -9 -9 ------- Run | Yrd Mat Mat Sto Gar Traps Triggered 8 | . . 1 6 1 Indirectly . | . . . . . Trap Hack Attempts . | . . . . . Triggered . | . . . . . Disarmed . | . . . . . Reprogrammed . | . . . . . Reused . | . . . . . Traps Extracted . | . . . . . Installed . | . . . . . Triggered . | . . . . . Machines | -11 -10 -9 -9 -9 ---------- Run | Yrd Mat Mat Sto Gar Machines Disabled . | . . . . . Max in Single Turn . | . . . . . Machines Repaired . | . . . . . Machines Dismantled . | . . . . . Machines Sabotaged . | . . . . . Overloaded Fab Kills . | . . . . . Hacking | -11 -10 -9 -9 -9 --------- Run | Yrd Mat Mat Sto Gar Machines Accessed 6 | . 1 3 1 1 Terminals 4 | . 1 2 . 1 Fabricators . | . . . . . Repair Stations . | . . . . . Recycling Units . | . . . . . Scanalyzers 1 | . . 1 . . Garrison Access 1 | . . . 1 . Total Hacks 9 | . 2 5 1 1 Successful 5 | . 2 1 1 1 Failed 4 | . . 4 . . Catastrophic 2 | . . 2 . . Database Lockouts . | . . . . . Manual 2 | . . 2 . . Terminals 5 | . 2 2 . 1 Fabricators . | . . . . . Repair Stations . | . . . . . Recycling Units . | . . . . . Scanalyzers 3 | . . 3 . . Garrison Access 1 | . . . 1 . Terminal Hacks 3 | . 2 . . 1 Prototype ID Bank 1 | . 1 . . . Registered Components 1 | . 1 . . . Security Stations 1 | . . . . 1 Fabricator Hacks . | . . . . . Repair Station Hacks . | . . . . . Recycling Unit Hacks . | . . . . . Scanalyzer 1 | . . 1 . . Retrieve Study 1 | . . 1 . . Garrison Access Hacks 1 | . . . 1 . Unlock Access 1 | . . . 1 . Unauthorized Hacks . | . . . . . Terminals . | . . . . . Fabricators . | . . . . . Repair Stations . | . . . . . Recycling Units . | . . . . . Scanalyzers . | . . . . . Garrison Access . | . . . . . Data Cores Recovered 1 | . 1 . . . Used . | . . . . . Hacking Detections 4 | . 1 3 . . Full Trace Events . | . . . . . Feedback Events . | . . . . . Feedback Blocked . | . . . . . Robot Schematics Acquired . | . . . . . Robots Built . | . . . . . Authchips . | . . . . . Time . | . . . . . Total Robot Build Rating . | . . . . . Part Schematics Acquired . | . . . . . Parts Built . | . . . . . Authchips . | . . . . . Time . | . . . . . Total Part Build Rating . | . . . . . Part Studies Acquired 1 | . . 1 . . Parts Repaired . | . . . . . Time . | . . . . . Parts Recycled . | . . . . . Recycled Matter . | . . . . . Retrieved Matter . | . . . . . Retrieved Components . | . . . . . Parts Scanalyzed . | . . . . . Part Schematics Acquired . | . . . . . Parts Damaged . | . . . . . Bothacking | -11 -10 -9 -9 -9 ------------ Run | Yrd Mat Mat Sto Gar Used RIF Installer . | . . . . . Robots Hacked . | . . . . . Non-combat . | . . . . . Combat . | . . . . . Robot Hacks Applied . | . . . . . Relay Couplers Released . | . . . . . Fabnet Peak Effective % . | . . . . . Robots Rewired . | . . . . . Allies Hacked . | . . . . . Hacks Repelled . | . . . . . Allies | -11 -10 -9 -9 -9 -------- Run | Yrd Mat Mat Sto Gar Total Allies 2 | . . . 2 . Largest Group 2 | . . . 2 . Highest-Rated Group 62 | . . . 62 . Highest-Rated Ally 31 | . . . 31 . Total Orders . | . . . . . Ally Attacks 44 | . . . 44 . Total Damage 655 | . . . 655 . Kills 11 | . . . 11 . Allies Corrupted . | . . . . . Allies Melted . | . . . . . Intel | -11 -10 -9 -9 -9 ------- Run | Yrd Mat Mat Sto Gar Active Infowar (turns) 1050 | 147 115 216 385 187 Seismic 1050 | 147 115 216 385 187 Robot Analysis Total . | . . . . . Derelict Logs Recovered . | . . . . . Drone Launches . | . . . . . Drone Recoveries . | . . . . . Exploration | -11 -10 -9 -9 -9 ------------- Run | Yrd Mat Mat Sto Gar Turns Passed 1170 | 234 115 216 418 187 Spaces Moved 767 | 130 88 159 239 151 Core 6 | 6 . . . . Treads . | . . . . . Legs 761 | 124 88 159 239 151 Wheels . | . . . . . Hover . | . . . . . Flight . | . . . . . Fastest Speed 50 | 50 120 105 105 105 Average Speed 109 | 116 120 106 105 107 Slowest Speed 175 | 120 120 120 175 175 Overloaded Moves . | . . . . . Propulsion Burnouts . | . . . . . Robots Hopped . | . . . . . Potential Cave-ins . | . . . . . Cave-ins Triggered . | . . . . . Exploration Rate (%) 25 | 5 31 14 44 31 Regions Visited 4 Branch Regions 1 Pre-discovered Areas . | . . . . . Known Exits Taken 1 | . . . 1 . Unknown Exits Taken 3 | 1 1 1 . . Scrap Searched . | . . . . . Spaces Dug . | . . . . . Terrain Destroyed . | . . . . . Melee . | . . . . . Projectile . | . . . . . AOE . | . . . . . Terrain Rammed . | . . . . . Walls Destroyed . | . . . . . Machines Disabled . | . . . . . Actions | -11 -10 -9 -9 -9 --------- Run | Yrd Mat Mat Sto Gar Total 958 | 168 92 186 341 171 Wait 59 | . . 7 36 16 Move 763 | 129 87 158 238 151 Hop . | . . . . . Pick Up 16 | 8 . 4 4 . Fast Attach 16 | 7 . 4 5 . Attach 6 | . . . 4 2 Detach . | . . . . . Swap 6 | . 1 1 4 . Drop 9 | 1 1 2 5 . Fire 72 | 23 3 10 34 2 Melee . | . . . . . Ram . | . . . . . Kick 1 | . . . 1 . Crush . | . . . . . Escape Stasis 10 | . . . 10 . Rewire . | . . . . . Trap . | . . . . . Miscellaneous . | . . . . . Route ------- -11/Scrapyard -10/Materials -9/Materials -9/Storage -9/Garrison History --------- Turn | Location | Event 4 | -11/Scrapyard | Discovered new exit (range 15) 235 | -11/Scrapyard | Entered Materials 303 | -10/Materials | Discovered new exit (range 13) 305 | -10/Materials | Build established: Mutant 350 | -10/Materials | Entered another Materials area 350 | -9/Materials | Evolved 2 slots: Propulsion x1, Utility x1 443 | -9/Materials | Discovered new exit (range 16) 486 | -9/Materials | Met 8R-AWN 566 | -9/Materials | Entered Storage 786 | -9/Storage | Met a pair of Derelict thieves 864 | -9/Storage | Garrison activated, responded to threat 879 | -9/Storage | Core integrity fell below 50% 945 | -9/Storage | Lost 5 parts (2n3u) 983 | -9/Storage | Identified exit to Garrison 984 | -9/Storage | Entered Garrison 1016 | -9/Garrison | Triggered checkpoint 1037 | -9/Garrison | Learned Recycling security intel 1148 | -9/Garrison | Triggered checkpoint 1171 | -9/Garrison | Self-destructed Last Messages --------------- 00983_ Connecting with Garrison Access... 00983_ Current location identified: Storage >>Unlock Access door unlocked. 00983_ EXIT=UNLOCKED: GARRISON LOCATION=GARRISON GOAL=ESCAPE 01016_ Beams of light sweep through the air. An alarm sounds. 01017_ S-10 Pest destroyed. 01023_ Acquired 13 matter. 01036_ Triggered Alarm Trap. 01036_ An alarm sounds. 01037_ Connecting with Garrison Terminal... >>Download(Security) Retrieving Recycling security records... Downloaded coordinate data. Data stored: Recycling security intel. 01148_ Beams of light sweep through the air. An alarm sounds. Garrison Door activated. 01156_ Aluminum Leg+ destroyed. Map ----- +----------------------------------------------------+ | ?????????????????????????????????????????????????? | | ?????????????????????????????????????????????????? | | ???????????????????????????????## ?#""""#? ##??? | | ???????????????????????????????# #??? | | ??????????????????????????????? ? ? #??? | | ??????????????????????????????? ? ? #??? | | ???????????????????????????????# ## #? #??? | | ???????????????????????????????# ## ## #??? | | ??????????????????????????????? "??? | | ??????????????????????????????? "??? | | ??????????????????????????????? "??? | | ??????????????????????????????? "??? | | ???????????????????????????????# ## ## #??? | | ???????????????????????????????# ## ## #### | | ???????????????????????????????# | | ???????????????????????????????# | | ???????????????????????????????# #### | | ???????????????????????????????# ## ## ##??? | | ???????????????????????????????# ## ## #???? | | ???????????????????????????????# ######## #???? | | ???????????????????????????????# #??????# #???? | | ???????????????????????????????# #??????# #???? | | ???????????????????????????????# #??????# #???? | | ???????????????????????????????# #??????# #???? | | ?????????????????###############g #??????# ##### | | ??????????# @ l g #??????# | | ??????????# #??????# | | ??????????# gg #??????######## | | ??????????? ################## ##?????????????? | | ???????????????????????????????# #??????????????? | | ??????????????????????????????? ?????????????? | | ??????????????????????????????? ????????????? | | ??????????????????????????????? ######???????????? | | ??????????????????????????????? ?????????????????? | | ???????????????????????????????#?????????????????? | | ?????????????????????????????????????????????????? | | ?????????????????????????????????????????????????? | | ?????????????????????????????????????????????????? | | ?????????????????????????????????????????????????? | | ?????????????????????????????????????????????????? | | ?????????????????????????????????????????????????? | | ?????????????????????????????????????????????????? | | ?????????????????????????????????????????????????? | | ?????????????????????????????????????????????????? | | ?????????????????????????????????????????????????? | | ?????????????????????????????????????????????????? | | ?????????????????????????????????????????????????? | | ?????????????????????????????????????????????????? | | ?????????????????????????????????????????????????? | | ?????????????????????????????????????????????????? | +----------------------------------------------------+ Best States ------------- Heat Dissipation 28 Energy Generation 14 Energy Capacity 280 Matter Stores 300 Matter Capacity 300 Sight Range 16 Terrain Scan Density 10 Armor Coverage 150 Evasion (%) 55 Item Schematics ----------------- None Robot Schematics ------------------ None Fabricated ------------ Nothing Repaired ---------- Nothing Studied --------- Aluminum Leg | -9/Materials | Hacked Alien Tech Used ----------------- None Achievements -------------- Follow The Leader Challenges ------------ None Game ------ Seed SingularityZeronetClaws Manual? 0 Play Time 00:11:03 Cumulative 310.8 hours Start 2026.03.27 @ 13:25:29 End 2026.05.03 @ 22:02:11 Sessions 3 Manual Loads 0 Difficulty Rogue Special Mode None Game No. 660 Rogue 660 Adventurer 0 Explorer 0 Win Type - Total 20 Types 14/0/4/1/1/0/0/0/0/0 Lore% 81 Gallery% 69 Achievement% 51 Wizard Run 0 Options --------- Layout 0 ASCII 0 Keyboard 0 Movement Numpad Keybinds 0 Fullscreen 2 Font 18/Terminus Map View 76x50 Zoom Use 0% Tactical HUD 1 Map Filters NONE Filters SATURATION(100) Steam 1 RUN: d80ffd3c-9ddb-4db5-946a-e7dc93ae7ffa